[Event "Western Asian Juniors Chess-ch 2023"]
[Site "Colombo"]
[Date "2023.12.05"]
[Round "9.8"]
[White "Wijerathna, Vinuka Dihain"]
[Black "Dissanayake, R K T"]
[Result "0-1"]
[ECO "B51"]
[WhiteElo "1534"]
[BlackElo "1865"]
[Annotator "NA RC"]
[PlyCount "128"]
[EventDate "2023.11.30"]
[EventCountry "SRI"]
[SourceTitle "playchess.com"]
[Source "ChessBase"]
[SourceQuality "1"]
[TimeControl "5400+30"]

1. e4 {[%emt 0:00:00]} c5 {[%emt 0:00:00]} 2. Nf3 {[%emt 0:00:00]} d6 {[%emt 0:00:00]} 3. Bb5+ {[%emt 0:00:13]} Nc6 {[%emt 0:00:30]} 4. O-O {[%emt 0:00:30]} e5 5. Re1 {[%emt 0:00:30]} Nf6 {[%emt 0:01:00]} 6. c3 {[%emt 0:00:06]} a6 {[%emt 0:00:29]} 7. Bf1 {[%emt 0:00:14]} Be7 {[%emt 0:00:27]} 8. d4 {[%emt 0:03:12]} Qc7 {[%emt 0:00:18]} 9. h3 {[%emt 0:02:08]} h6 {[%emt 0:03:00]} 10. Be3 {[%emt 0:03:01]} Nxe4 {[%emt 0:02:59]} 11. d5 {[%emt 0:00:15]} Nf6 {[%emt 0:09:21]} 12. dxc6 {[%emt 0:00:28]} bxc6 {[%emt 0:00:01]} 13. Na3 {[%emt 0:12:10]} g5 {[%emt 0:04:20]} 14. Nh2 {[%emt 0:03:41]} Nd5 {[%emt 0:05:36]} 15. Be2 {[%emt 0:14:32]} f5 {[%emt 0:06:07]} 16. Bh5+ {[%emt 0:03:57]} Kf8 {[%emt 0:00:32]} 17. Nc4 {[%emt 0:01:51]} Be6 {[%emt 0:03:10]} 18. Qc2 {[%emt 0:06:45]} Nf6 {[%emt 0:03:59]} 19. Be2 {[%emt 0:00:23]} Kg7 {[%emt 0:01:39]} 20. Bf1 {[%emt 0:02:45]} e4 {[%emt 0:04:46]} 21. Rad1 {[%emt 0:17:36]} d5 {[%emt 0:01:02]} 22. Na3 {[%emt 0:00:29]} Bd6 {[%emt 0:01:29]} 23. g3 {[%emt 0:00:08]} f4 {[%emt 0:02:24]} 24. Bc1 {[%emt 0:00:24]} fxg3 {[%emt 0:00:40]} 25. fxg3 {[%emt 0:00:10]} Bxg3 {[%emt 0:00:15]} 26. Re2 {[%emt 0:00:56]} Nh5 {[%emt 0:08:18]} 27. Be3 {[%emt 0:01:27]} Bd6 {[%emt 0:01:09]} 28. Red2 {[%emt 0:01:08]} Bxh2+ {[%emt 0:02:23]} 29. Rxh2 {[%emt 0:00:34]} Qg3+ {[%emt 0:00:07]} 30. Kh1 {[%emt 0:00:39]} Qxe3 {[%emt 0:00:07]} 31. Qf2 {[%emt 0:00:32]} Qxf2 {[%emt 0:00:37]} 32. Rxf2 {[%emt 0:00:01]} Ng3+ {[%emt 0:00:26]} 33. Kg2 {[%emt 0:00:01]} Nxf1 {[%emt 0:00:15]} 34. Rdxf1 {[%emt 0:00:02]} Rhf8 {[%emt 0:00:15]} 35. Nc2 {[%emt 0:00:12]} a5 {[%emt 0:00:31]} 36. Ne3 {[%emt 0:00:07]} Rxf2+ {[%emt 0:00:22]} 37. Rxf2 {[%emt 0:00:02]} Rf8 {[%emt 0:00:23]} 38. Re2 {[%emt 0:00:01]} Rf3 {[%emt 0:00:20]} 39. Nc2 {[%emt 0:00:06]} Bxh3+ {[%emt 0:00:10]} 40. Kh2 {[%emt 0:00:05]} Bg4 {[%emt 0:00:07]} 41. Rg2 {[%emt 0:00:12]} h5 {[%emt 0:00:28]} 42. b4 {[%emt 0:00:03]} axb4 {[%emt 0:01:13]} 43. cxb4 {[%emt 0:00:05]} cxb4 {[%emt 0:00:48]} 44. Nxb4 {[%emt 0:00:15]} Rc3 {[%emt 0:00:07]} 45. Rc2 {[%emt 0:00:41]} Rxc2+ {[%emt 0:00:21]} 46. Nxc2 {[%emt 0:00:01]} Bd1 {[%emt 0:00:45]} 47. Nd4 {[%emt 0:00:40]} Ba4 {[%emt 0:00:08]} 48. Ne6+ {[%emt 0:00:06]} Kf6 {[%emt 0:00:14]} 49. Nc5 {[%emt 0:00:02]} Bb5 {[%emt 0:00:44]} 50. a4 {[%emt 0:00:03]} Bc4 {[%emt 0:00:12]} 51. a5 {[%emt 0:00:02]} e3 {[%emt 0:00:11]} 52. Kg3 {[%emt 0:00:09]} h4+ {[%emt 0:00:59]} 53. Kf3 {[%emt 0:00:13]} h3 {[%emt 0:00:13]} 54. a6 {[%emt 0:00:06]} Bxa6 {[%emt 0:00:04]} 55. Nxa6 {[%emt 0:00:25]} h2 {[%emt 0:00:05]} 56. Kg2 {[%emt 0:00:09]} e2 {[%emt 0:00:07]} 57. Kxh2 {[%emt 0:00:08]} e1=Q {[%emt 0:00:08]} 58. Nc5 {[%emt 0:00:26]} Qf2+ {[%emt 0:00:06]} 59. Kh1 {[%emt 0:00:04]} Qxc5 {[%emt 0:00:04]} 60. Kg2 {[%emt 0:00:04]} Qe3 {[%emt 0:00:06]} 61. Kf1 {[%emt 0:00:07]} Qd2 {[%emt 0:00:06]} 62. Kg1 {[%emt 0:00:09]} g4 {[%emt 0:00:07]} 63. Kf1 {[%emt 0:00:05]} g3 {[%emt 0:00:04]} 64. Kg1 {[%emt 0:00:07]} Qf2+ {[%emt 0:00:04]} 0-1

[Event "Western Asian Juniors Chess-ch 2023"]
[Site "Colombo"]
[Date "2023.12.05"]
[Round "9.9"]
[White "Kulathilake, S M M P"]
[Black "Mujahid Bin Yazeed"]
[Result "0-1"]
[ECO "A65"]
[WhiteElo "1583"]
[BlackElo "1832"]
[Annotator "NA RC"]
[PlyCount "48"]
[EventDate "2023.11.30"]
[EventCountry "SRI"]
[SourceTitle "playchess.com"]
[Source "ChessBase"]
[SourceQuality "1"]
[TimeControl "5400+30"]

1. d4 {[%emt 0:00:30]} Nf6 {[%emt 0:00:30]} 2. c4 {[%emt 0:00:30]} c5 {[%emt 0:00:30]} 3. d5 {[%emt 0:00:14]} e6 {[%emt 0:00:28]} 4. Nc3 {[%emt 0:00:15]} exd5 {[%emt 0:00:03]} 5. cxd5 {[%emt 0:00:08]} d6 {[%emt 0:00:08]} 6. e4 {[%emt 0:00:09]} g6 {[%emt 0:00:18]} 7. Be2 {[%emt 0:00:47]} Bg7 {[%emt 0:00:30]} 8. Be3 {[%emt 0:01:39]} O-O {[%emt 0:01:29]} 9. h4 {[%emt 0:00:38]} Re8 {[%emt 0:02:36]} 10. Qc2 {[%emt 0:04:09]} Nxe4 {[%emt 0:05:46]} 11. Nxe4 {[%emt 0:01:42]} Bf5 {[%emt 0:01:46]} 12. Bd3 {[%emt 0:01:13]} Bxe4 {[%emt 0:01:27]} 13. Bxe4 {[%emt 0:00:01]} f5 {[%emt 0:00:08]} 14. Bxf5 {[%emt 0:01:06]} gxf5 {[%emt 0:00:34]} 15. O-O-O {[%emt 0:02:31]} Re4 {[%emt 0:02:08]} 16. Ne2 {[%emt 0:03:51]} Na6 {[%emt 0:03:07]} 17. Kb1 {[%emt 0:22:25]} Nb4 {[%emt 0:04:16]} 18. Qb3 {[%emt 0:00:50]} a5 {[%emt 0:00:16]} 19. Ng3 {[%emt 0:09:14]} a4 {[%emt 0:02:03]} 20. Qa3 {[%emt 0:00:20]} Qe8 {[%emt 0:02:03]} 21. Bg5 {[%emt 0:25:13]} Re2 {[%emt 0:04:50]} 22. Rd2 {[%emt 0:03:55]} Re1+ {[%emt 0:00:26]} 23. Rd1 {[%emt 0:00:06]} Rxh1 {[%emt 0:00:14]} 24. Rxh1 {[%emt 0:00:03]} f4 {[%emt 0:00:10]} 0-1

[Event "Western Asian Juniors Chess-ch 2023"]
[Site "Colombo"]
[Date "2023.12.05"]
[Round "9.10"]
[White "Nabil Nazar, Mohamed"]
[Black "Liyanage, Pesandu Rashmitha"]
[Result "1/2-1/2"]
[ECO "C43"]
[WhiteElo "1803"]
[BlackElo "1766"]
[Annotator "NA RC"]
[PlyCount "32"]
[EventDate "2023.11.30"]
[EventCountry "SRI"]
[SourceTitle "playchess.com"]
[Source "ChessBase"]
[SourceQuality "1"]
[TimeControl "5400+30"]

1. e4 {[%emt 0:16:54]} e5 {[%emt 0:00:48]} 2. Nf3 {[%emt 0:00:35]} Nf6 {[%emt 1:30:42]} 3. d4 {[%emt 0:00:07]} Nxe4 {[%emt 0:00:00]} 4. Bd3 {[%emt 0:01:05]} d5 {[%emt 0:00:00]} 5. Nxe5 {[%emt 0:00:36]} Nd7 {[%emt 0:01:30]} 6. Nxf7 {[%emt 0:07:59]} Qe7 {[%emt 0:00:00]} 7. Nxh8 {[%emt 0:04:35]} Nc3+ {[%emt 0:01:00]} 8. Kd2 {[%emt 0:00:27]} Nxd1 {[%emt 0:00:00]} 9. Re1 {[%emt 0:00:17]} Nxf2 {[%emt 0:01:00]} 10. Bxh7 {[%emt 0:03:13]} Ne4+ {[%emt 0:00:30]} 11. Rxe4 {[%emt 0:00:30]} dxe4 {[%emt 0:00:00]} 12. Bg6+ {[%emt 0:00:11]} Kd8 {[%emt 0:00:00]} 13. Nf7+ {[%emt 0:00:12]} Ke8 {[%emt 0:00:00]} 14. Nd6+ {[%emt 0:01:02]} Kd8 {[%emt 0:00:00]} 15. Nf7+ {[%emt 0:00:05]} Ke8 {[%emt 0:00:00]} 16. Nd6+ {[%emt 0:00:03]} Kd8 {[%emt 0:00:00]} 1/2-1/2